fUSD/lending_fUSD_20240104
["ID","MTS","AMOUNT","RATE_DAILY","PERIOD"]
[310131570,1704379851551,-515.0,0.00032876,2]
[310131571,1704379851561,-9328.57,0.00032876,2]
[310131572,1704379851570,-515.28,0.00032876,2]
[310131573,1704379851579,-500.0,0.00032876,2]
[310131574,1704379851589,-500.0,0.00032876,2]
[310131575,1704379851598,-1696.21,0.00032876,2]
[310131576,1704379851608,-500.0,0.00032876,2]
[310131577,1704379851617,-500.0,0.00032876,2]
[310131578,1704379851627,-500.0,0.00032876,2]
[310131579,1704379851636,-1158.55,0.00032876,2]
[310131580,1704379851646,-500.0,0.00032876,2]
[310131581,1704379851655,-542.99035376,0.00032876,2]
[310131582,1704379851665,-746.87,0.00032876,2]
[310131583,1704379851675,-500.0,0.00032876,2]
[310131584,1704379851684,-500.0,0.00032876,2]
[310131585,1704379851694,-1047.16338591,0.00032876,2]
[310131586,1704379851704,-500.0,0.00032876,2]
[310131587,1704379851714,-585.65,0.00032876,2]
[310131588,1704379851723,-500.0,0.00032876,2]
[310131589,1704379851734,-500.0,0.00032876,2]
[310131590,1704379851744,-1243.16,0.00032876,2]
[310131591,1704379851755,-500.0,0.00032876,2]
[310131592,1704379851765,-1162.34,0.00032876,2]
[310131593,1704379851775,-2032.71,0.00032876,2]
[310131594,1704379851785,-517.77,0.00032876,2]
[310131595,1704379851794,-500.0,0.00032876,2]
[310131596,1704379851805,-500.0,0.00032876,2]
[310131597,1704379851814,-500.0,0.00032876,2]
[310131598,1704379851824,-584.75,0.00032876,2]
[310131599,1704379851834,-806.38,0.00032876,2]
[310131600,1704379851843,-500.0,0.00032876,2]
[310131601,1704379851852,-500.0,0.00032876,2]
[310131602,1704379851862,-674.03,0.00032876,2]
[310131603,1704379851871,-500.0,0.00032876,2]
[310131604,1704379851879,-500.0,0.00032876,2]
[310131605,1704379851888,-1367.76,0.00032876,2]
[310131606,1704379851898,-500.0,0.00032876,2]
[310131607,1704379851907,-812.81,0.00032876,2]
[310131608,1704379851916,-576.15186536,0.00032876,2]
[310131609,1704379851925,-1267.95,0.00032876,2]
[310131610,1704379851934,-500.0,0.00032876,2]
[310131611,1704379851944,-500.0,0.00032876,2]
[310131612,1704379851954,-500.0,0.00032876,2]
[310131613,1704379851963,-500.0,0.00032876,2]
[310131614,1704379851973,-500.0,0.00032876,2]
[310131615,1704379851983,-500.0,0.00032876,2]
[310131616,1704379851993,-502.42251477,0.00032876,2]
[310131617,1704379852003,-2136.74,0.00032876,2]
[310131618,1704379852013,-500.0,0.00032876,2]
[310131619,1704379852022,-500.0,0.00032876,2]
[310131620,1704379852032,-500.0,0.00032876,2]
[310131621,1704379852041,-1613.02,0.00032876,2]
[310131622,1704379852051,-500.0,0.00032876,2]
[310131623,1704379852061,-921.0,0.00032876,2]
[310131624,1704379852070,-500.0,0.00032876,2]
[310131625,1704379852080,-500.0,0.00032876,2]
[310131626,1704379852089,-504.93708355,0.00032876,2]
[310131627,1704379852099,-6778.32,0.00032876,2]
[310131628,1704379852108,-500.0,0.00032876,2]
[310131629,1704379852118,-500.0,0.00032876,2]
[310131630,1704379852127,-500.0,0.00032876,2]
[310131631,1704379852137,-500.0,0.00032876,2]
[310131632,1704379852147,-5937.95,0.00032876,2]
[310131633,1704379852157,-564.94,0.00032876,2]
[310131634,1704379852166,-605.3,0.00032876,2]
[310131635,1704379852176,-767.99,0.00032876,2]
[310131636,1704379852186,-1863.72,0.00032876,2]
[310131637,1704379852197,-500.0,0.00032876,2]
[310131638,1704379852207,-500.0,0.00032876,2]
[310131639,1704379852218,-1006.87,0.00032876,2]
[310131640,1704379852228,-500.0,0.00032876,2]
[310131641,1704379852239,-500.0,0.00032876,2]
[310131642,1704379852248,-2780.42,0.00032876,2]
[310131643,1704379852259,-503.48459335,0.00032876,2]
[310131644,1704379852268,-3378.06,0.00032876,2]
[310131645,1704379852278,-2104.92,0.00032876,2]
[310131646,1704379852288,-500.0,0.00032876,2]
[310131647,1704379852297,-675.56,0.00032876,2]
[310131648,1704379852307,-500.0,0.00032876,2]
[310131649,1704379852317,-500.0,0.00032876,2]
[310131650,1704379852326,-500.0,0.00032876,2]
[310131651,1704379852336,-500.0,0.00032876,2]
[310131652,1704379852346,-1448.56,0.00032876,2]
[310131653,1704379852355,-841.6,0.00032876,2]
[310131654,1704379852365,-500.0,0.00032876,2]
[310131655,1704379852375,-500.0,0.00032876,2]
[310131656,1704379852385,-500.0,0.00032876,2]
[310131657,1704379852395,-561.79,0.00032876,2]
[310131658,1704379852404,-628.57,0.00032876,2]
[310131659,1704379852413,-958.91,0.00032876,2]
[310131660,1704379852422,-500.0,0.00032876,2]
[310131661,1704379852434,-543.21,0.00032876,2]
[310131662,1704379852445,-500.0,0.00032876,2]
[310131663,1704379852454,-500.0,0.00032876,2]
[310131664,1704379852463,-500.0,0.00032876,2]
[310131665,1704379852473,-506.45561521,0.00032876,2]
[310131666,1704379852482,-500.0,0.00032876,2]
[310131667,1704379852492,-938.81,0.00032876,2]
[310131668,1704379852501,-500.0,0.00032876,2]
[310131669,1704379852510,-500.0,0.00032876,2]
[310131670,1704379852519,-500.0,0.00032876,2]
[310131671,1704379852528,-500.0,0.00032876,2]
[310131672,1704379852538,-887.96,0.00032876,2]
[310131673,1704379852547,-504.59066426,0.00032876,2]
[310131674,1704379852557,-574.22,0.00032876,2]
[310131675,1704379852566,-500.0,0.00032876,2]
[310131676,1704379852575,-500.0,0.00032876,2]
[310131677,1704379852585,-500.0,0.00032876,2]
[310131678,1704379852594,-3849.25,0.00032876,2]
[310131679,1704379852606,-500.0,0.00032876,2]
[310131680,1704379852616,-500.0,0.00032876,2]
[310131681,1704379852626,-500.0,0.00032876,2]
[310131682,1704379852645,-1711.45,0.00032876,2]
[310131683,1704379852658,-500.0,0.00032876,2]
[310131684,1704379852668,-10588.74,0.00032876,2]
[310131685,1704379852678,-500.0,0.00032876,2]
[310131686,1704379852688,-500.0,0.00032876,2]
[310131687,1704379852699,-500.0,0.00032876,2]
[310131688,1704379852709,-500.0,0.00032876,2]
[310131689,1704379852718,-490.70709848,0.00032876,2]
[310131690,1704379852729,-758.93,0.00032876,2]
[310131691,1704379852740,-606.27,0.00032876,2]
[310131692,1704379852749,-500.0,0.00032876,2]
[310131693,1704379852761,-500.0,0.00032876,2]
[310131694,1704379852771,-500.0,0.00032876,2]
[310131695,1704379852781,-606.01,0.00032876,2]
[310131696,1704379852791,-1198.57,0.00032876,2]
[310131697,1704379852801,-5079.07,0.00032876,2]
[310131698,1704379852810,-500.0,0.00032876,2]
[310131699,1704379852821,-939.72,0.00032876,2]
[310131700,1704379852831,-500.0,0.00032876,2]
[310131701,1704379852843,-500.0,0.00032876,2]
[310131702,1704379852853,-1196.63,0.00032876,2]
[310131703,1704379852864,-500.0,0.00032876,2]
[310131704,1704379852875,-1608.64,0.00032876,2]
[310131705,1704379852886,-500.0,0.00032876,2]
[310131706,1704379852897,-540.84,0.00032876,2]
[310131707,1704379852908,-500.0,0.00032876,2]
[310131708,1704379852918,-500.0,0.00032876,2]
[310131709,1704379852928,-3816.66,0.00032876,2]
[310131710,1704379852939,-314.30062876,0.00032876,2]
[310131711,1704379852956,-555.32,0.00032876,2]
[310131712,1704379852967,-500.0,0.00032876,2]
[310131713,1704379852979,-598.45,0.00032876,2]
[310131714,1704379852990,-500.0,0.00032876,2]
[310131715,1704379853001,-793.95,0.00032876,2]
[310131716,1704379853012,-793.95,0.00032876,2]
[310131717,1704379853023,-912.45,0.00032876,2]
[310131718,1704379853034,-500.0,0.00032876,2]
[310131719,1704379853044,-793.95,0.00032876,2]
[310131720,1704379853054,-793.95,0.00032876,2]
[310131721,1704379853064,-500.0,0.00032876,2]
[310131722,1704379853081,-793.95,0.00032876,2]
[310131723,1704379853108,-500.0,0.00032876,2]
[310131724,1704379853117,-1611.63,0.00032876,2]
[310131725,1704379853127,-500.0,0.00032876,2]
[310131726,1704379853137,-1094.2,0.00032876,2]
[310131727,1704379853147,-500.0,0.00032876,2]
[310131728,1704379853156,-500.0,0.00032876,2]
[310131729,1704379853166,-500.0,0.00032876,2]
[310131730,1704379853175,-500.0,0.00032876,2]
[310131731,1704379853186,-575.81194359,0.00032876,2]
[310131732,1704379853197,-500.0,0.00032876,2]
[310131733,1704379853207,-4156.42,0.00032876,2]
[310131734,1704379853218,-500.0,0.00032876,2]
[310131735,1704379853228,-500.0,0.00032876,2]
[310131736,1704379853240,-500.0,0.00032876,2]
[310131737,1704379853251,-500.0,0.00032876,2]
[310131738,1704379853261,-502.90764141,0.00032876,2]
[310131739,1704379853271,-500.0,0.00032876,2]
[310131740,1704379853281,-500.0,0.00032876,2]
[310131741,1704379853292,-500.0,0.00032876,2]
[310131742,1704379853302,-1567.8,0.00032876,2]
[310131743,1704379853311,-506.44102425,0.00032876,2]
[310131744,1704379853321,-500.0,0.00032876,2]
[310131745,1704379853332,-500.0,0.00032876,2]
[310131746,1704379853342,-500.0,0.00032876,2]
[310131747,1704379853352,-500.0,0.00032876,2]
[310131748,1704379853364,-500.0,0.00032876,2]
[310131749,1704379853374,-2129.56,0.00032876,2]
[310131750,1704379853385,-500.0,0.00032876,2]
[310131751,1704379853395,-500.0,0.00032876,2]
[310131752,1704379853405,-500.0,0.00032876,2]
[310131753,1704379853415,-500.0,0.00032876,2]
[310131754,1704379853426,-500.0,0.00032876,2]
[310131755,1704379853436,-588.0,0.00032876,2]
[310131756,1704379853449,-478.64905808,0.00032876,2]
[310131757,1704379853463,-500.0,0.00032876,2]
[310131758,1704379853473,-576.69,0.00032876,2]
[310131759,1704379853484,-500.0,0.00032876,2]
[310131760,1704379853494,-500.0,0.00032876,2]
[310131761,1704379853505,-500.0,0.00032876,2]
[310131762,1704379853514,-500.0,0.00032876,2]
[310131763,1704379853525,-2136.27,0.00032876,2]
[310131764,1704379853536,-2952.29,0.00032877,2]
[310131765,1704379853546,-2400.0,0.00032877,7]
[310131766,1704379853556,-559.69,0.00032877,15]
[310131767,1704379853568,-624.01,0.00032883,2]
[310131768,1704379853579,-1000.0,0.000329,2]
[310131769,1704379853589,-500.0,0.00032919,2]
[310131770,1704379853600,-2013.59,0.00032919,2]
[310131771,1704379853611,-500.0,0.00032919,2]
[310131772,1704379853621,-500.0,0.00032919,2]
[310131773,1704379853631,-793.95,0.00032919,2]
[310131774,1704379853643,-1657.35994973,0.00033,4]
[310131775,1704379853655,-2000.0,0.00033,2]
[310131776,1704379853666,-862.0,0.00033,2]
[310131777,1704379853677,-529.94868816,0.00033025,5]
[310131778,1704379853688,-247.35845678,0.00033031,7]
[310131779,1704379853701,-214.04941239,0.00033031,7]
[310131780,1704379853712,-1629.4355875,0.00033031,7]
[310131781,1704379853722,-943.47244033,0.00033031,7]
[310131782,1704379853733,-482.20854057,0.00033031,7]
[310131783,1704379853745,-866.15938701,0.00033031,7]
[310131784,1704379853755,-215.06990389,0.00033031,7]
[310131785,1704379853767,-207.11864343,0.00033031,7]
[310131786,1704379853780,-299.70113754,0.00033031,7]
[310131787,1704379853792,-153.39,0.00033032,2]
[310131788,1704379853805,-624.01,0.00033046,2]
[310131789,1704379853816,-152.0,0.00033059,3]
[310131790,1704379853826,-888.55408846,0.0003311,2]
[310131791,1704379853836,-1039.43496543,0.00033126,2]
[310131792,1704379853846,-200.0,0.0003314,7]
[310131793,1704379853856,-200.0,0.0003314,7]
[310131794,1704379853866,-200.0,0.0003314,7]
[310131795,1704379853876,-200.0,0.0003314,7]
[310131796,1704379853886,-2013.59,0.00033149,2]
[310131797,1704379853898,-2013.59,0.00033149,2]
[310131798,1704379853909,-2013.59,0.00033149,2]
[310131799,1704379853920,-2013.59,0.00033149,2]
[310131800,1704379853929,-2013.59,0.00033149,2]
[310131801,1704379853939,-2013.59,0.00033149,2]
[310131802,1704379853950,-2013.59,0.00033149,2]
[310131803,1704379853959,-2013.59,0.00033149,2]
[310131804,1704379853969,-500.0,0.00033149,2]
[310131805,1704379853979,-500.0,0.00033149,2]
[310131806,1704379853989,-500.0,0.00033149,2]
[310131807,1704379853999,-500.0,0.00033149,2]
[310131808,1704379854009,-500.0,0.00033149,2]
[310131809,1704379854018,-636.32,0.00033149,2]
[310131810,1704379854028,-150.0,0.00033149,2]
[310131811,1704379854038,-150.0,0.00033149,2]
[310131812,1704379854048,-793.95,0.00033149,2]
[310131813,1704379854058,-793.95,0.00033149,2]
[310131814,1704379854068,-793.95,0.00033149,2]
[310131815,1704379854078,-793.95,0.00033149,2]
[310131816,1704379854088,-793.95,0.00033149,2]
[310131817,1704379854097,-793.95,0.00033149,2]
[310131818,1704379854107,-793.95,0.00033149,2]
[310131819,1704379854117,-793.95,0.00033149,2]
[310131820,1704379854126,-1327947.3910271,0.0003315,3]
[310131821,1704379854136,-500.0,0.0003315,2]
[310131822,1704379854146,-500.0,0.0003315,2]
[310131823,1704379854156,-600.0,0.0003315,2]
[310131824,1704379854166,-971.26,0.0003315,2]
[310131825,1704379854177,-500.0,0.0003315,2]
[310131826,1704379854187,-500.0,0.0003315,2]
[310131827,1704379854197,-502.45169835,0.0003315,2]
[310131828,1704379854207,-500.0,0.0003315,2]
[310131829,1704379854219,-500.0,0.0003315,2]
[310131830,1704379854229,-500.0,0.0003315,2]
[310131831,1704379854241,-500.0,0.0003315,2]
[310131832,1704379854251,-500.0,0.0003315,2]
[310131833,1704379854262,-500.0,0.0003315,2]
[310131834,1704379854272,-500.0,0.0003315,2]
[310131835,1704379854282,-1170.39,0.0003315,2]
[310131836,1704379854292,-500.0,0.0003315,2]
[310131837,1704379854301,-500.0,0.0003315,2]
[310131838,1704379854311,-207.28989892,0.0003315,2]
[310131839,1704379854321,-500.0,0.0003315,2]
[310131840,1704379854331,-500.0,0.0003315,2]
[310131841,1704379854340,-500.0,0.0003315,2]
[310131842,1704379854349,-500.0,0.0003315,2]
[310131843,1704379854359,-500.0,0.0003315,2]
[310131844,1704379854368,-500.0,0.0003315,2]
[310131845,1704379854379,-500.0,0.0003315,2]
[310131846,1704379854391,-536.34,0.0003315,2]
[310131847,1704379854401,-500.0,0.0003315,2]
[310131848,1704379854412,-500.0,0.0003315,2]
[310131849,1704379854422,-500.0,0.0003315,2]
[310131850,1704379854431,-500.0,0.0003315,2]
[310131851,1704379854443,-636.67,0.0003315,2]
[310131852,1704379854454,-500.0,0.0003315,2]
[310131853,1704379854464,-500.0,0.0003315,2]
[310131854,1704379854474,-500.0,0.0003315,2]
[310131855,1704379854484,-405.08696779,0.0003315,2]
[310131856,1704379854494,-500.0,0.0003315,2]
[310131857,1704379854503,-500.0,0.0003315,2]
[310131858,1704379854513,-500.0,0.0003315,2]
[310131859,1704379854523,-500.0,0.0003315,2]
[310131860,1704379854533,-563.63176357,0.0003315,2]
[310131861,1704379854542,-500.0,0.0003315,2]
[310131862,1704379854552,-500.0,0.0003315,2]
[310131863,1704379854563,-500.0,0.0003315,2]
[310131864,1704379854572,-500.0,0.0003315,2]
[310131865,1704379854584,-588.36007453,0.0003315,2]
[310131866,1704379854595,-500.0,0.0003315,2]
[310131867,1704379854604,-500.0,0.0003315,2]
[310131868,1704379854614,-559.58,0.0003315,2]
[310131869,1704379854625,-500.0,0.0003315,2]
[310131870,1704379854635,-500.0,0.0003315,2]
[310131871,1704379854646,-503.36362127,0.0003315,2]
[310131872,1704379854655,-500.0,0.0003315,2]
[310131873,1704379854665,-500.0,0.0003315,2]
[310131874,1704379854674,-500.0,0.0003315,2]
[310131875,1704379854685,-500.0,0.0003315,2]
[310131876,1704379854694,-500.0,0.0003315,2]
[310131877,1704379854706,-500.0,0.0003315,2]
[310131878,1704379854717,-500.0,0.0003315,2]
[310131879,1704379854728,-500.0,0.0003315,2]
[310131880,1704379854739,-500.0,0.0003315,2]
[310131881,1704379854750,-664.67,0.0003315,2]
[310131882,1704379854761,-500.0,0.0003315,2]
[310131883,1704379854770,-500.0,0.0003315,2]
[310131884,1704379854780,-500.0,0.0003315,2]
[310131885,1704379854791,-500.0,0.0003315,2]
[310131886,1704379854801,-1268.46,0.0003315,2]
[310131887,1704379854811,-155.24195403,0.0003315,2]
[310131888,1704379854821,-500.0,0.0003315,2]
[310131889,1704379854831,-500.0,0.0003315,2]
[310131890,1704379854841,-500.0,0.0003315,2]
[310131891,1704379854851,-500.0,0.0003315,2]
[310131892,1704379854860,-299.54815103,0.0003315,2]
[310131893,1704379854870,-500.0,0.0003315,2]
[310131894,1704379854879,-500.0,0.0003315,2]
[310131895,1704379854890,-500.0,0.0003315,2]
[310131896,1704379854901,-539.05,0.0003315,2]
[310131897,1704379854911,-513.9538944,0.0003315,2]
[310131898,1704379854922,-500.0,0.0003315,2]
[310131899,1704379854933,-500.0,0.0003315,2]
[310131900,1704379854943,-500.0,0.0003315,2]
[310131901,1704379854955,-500.0,0.0003315,2]
[310131902,1704379854965,-500.0,0.0003315,2]
[310131903,1704379854975,-500.0,0.0003315,2]
[310131904,1704379854986,-500.0,0.0003315,2]
[310131905,1704379854996,-340.70203733,0.0003315,2]
[310131906,1704379855006,-500.0,0.0003315,2]
[310131907,1704379855017,-500.0,0.0003315,2]
[310131908,1704379855027,-387.4313412,0.0003315,2]
[310131909,1704379855036,-500.0,0.0003315,2]
[310131910,1704379855046,-500.0,0.0003315,2]
[310131911,1704379855057,-500.0,0.0003315,2]
[310131912,1704379855067,-500.0,0.0003315,2]
[310131913,1704379855077,-500.0,0.0003315,2]
[310131914,1704379855087,-500.0,0.0003315,2]
[310131915,1704379855097,-500.0,0.0003315,2]
[310131916,1704379855107,-500.0,0.0003315,2]
[310131917,1704379855117,-500.0,0.0003315,2]
[310131918,1704379855127,-839.9,0.0003315,2]
[310131919,1704379855137,-500.0,0.0003315,2]
[310131920,1704379855147,-500.0,0.0003315,2]
[310131921,1704379855157,-500.0,0.0003315,2]
[310131922,1704379855167,-500.0,0.0003315,2]
[310131923,1704379855178,-1234.04,0.0003315,2]
[310131924,1704379855188,-1658.72,0.0003315,2]
[310131925,1704379855198,-500.0,0.0003315,2]
[310131926,1704379855208,-493.98732936,0.0003315,2]
[310131927,1704379855219,-500.0,0.0003315,2]
[310131928,1704379855229,-500.0,0.0003315,2]
[310131929,1704379855242,-500.0,0.0003315,2]
[310131930,1704379855252,-500.0,0.0003315,2]
[310131931,1704379855262,-548.38,0.0003315,2]
[310131932,1704379855272,-500.0,0.0003315,2]
[310131933,1704379855282,-500.0,0.0003315,2]
[310131934,1704379855291,-500.0,0.0003315,2]
[310131935,1704379855301,-500.0,0.0003315,2]
[310131936,1704379855311,-500.0,0.0003315,2]
[310131937,1704379855321,-500.0,0.0003315,2]
[310131938,1704379855331,-569.64,0.0003315,2]
[310131939,1704379855341,-552.28,0.0003315,2]
[310131940,1704379855351,-512.92,0.0003315,2]
[310131941,1704379855360,-500.0,0.0003315,2]
[310131942,1704379855370,-1150.58,0.0003315,2]
[310131943,1704379855381,-500.0,0.0003315,2]
[310131944,1704379855390,-500.0,0.0003315,2]
[310131945,1704379855400,-500.0,0.0003315,2]
[310131946,1704379855410,-627.89188373,0.0003315,2]
[310131947,1704379855421,-500.0,0.0003315,2]
[310131948,1704379855430,-500.0,0.0003315,2]
[310131949,1704379855440,-500.0,0.0003315,2]
[310131950,1704379855452,-500.0,0.0003315,2]
[310131951,1704379855461,-823.9,0.0003315,2]
[310131952,1704379855472,-663.69,0.0003315,2]
[310131953,1704379855482,-500.0,0.0003315,2]
[310131954,1704379855492,-697.92,0.0003315,2]
[310131955,1704379855503,-500.0,0.0003315,2]
[310131956,1704379855513,-804.76,0.0003315,2]
[310131957,1704379855522,-500.0,0.0003315,2]
[310131958,1704379855532,-500.0,0.0003315,2]
[310131959,1704379855542,-1477.52,0.0003315,2]
[310131960,1704379855552,-500.0,0.0003315,2]
[310131961,1704379855561,-500.0,0.0003315,2]
[310131962,1704379855571,-719.32,0.0003315,2]
[310131963,1704379855581,-791.14,0.0003315,2]
[310131964,1704379855591,-500.0,0.0003315,2]
[310131965,1704379855601,-500.0,0.0003315,2]
[310131966,1704379855611,-1714.8,0.0003315,2]
[310131967,1704379855621,-500.0,0.0003315,2]
[310131968,1704379855631,-504.83,0.0003315,2]
[310131969,1704379855641,-500.0,0.0003315,2]
[310131970,1704379855652,-249.47338996,0.0003315,2]
[310131971,1704379855662,-609.33365828,0.0003315,2]
[310131972,1704379855673,-500.0,0.0003315,2]
[310131973,1704379855684,-568.33076795,0.0003315,2]
[310131974,1704379855695,-500.0,0.0003315,2]
[310131975,1704379855706,-500.0,0.0003315,2]
[310131976,1704379855716,-500.0,0.0003315,2]
[310131977,1704379855726,-957.5,0.0003315,2]
[310131978,1704379855737,-500.0,0.0003315,2]
[310131979,1704379855747,-500.0,0.0003315,2]
[310131980,1704379855757,-551.95172365,0.0003315,2]
[310131981,1704379855768,-500.0,0.0003315,2]
[310131982,1704379855778,-500.0,0.0003315,2]
[310131983,1704379855788,-500.0,0.0003315,2]
[310131984,1704379855799,-500.0,0.0003315,2]
[310131985,1704379855809,-500.0,0.0003315,2]
[310131986,1704379855819,-500.0,0.0003315,2]
[310131987,1704379855829,-507.93968547,0.0003315,2]
[310131988,1704379855839,-500.0,0.0003315,2]
[310131989,1704379855849,-2008.27,0.0003315,2]
[310131990,1704379855859,-500.0,0.0003315,2]
[310131991,1704379855870,-500.0,0.0003315,2]
[310131992,1704379855881,-500.0,0.0003315,2]
[310131993,1704379855891,-571.34,0.0003315,2]
[310131994,1704379855902,-500.0,0.0003315,2]
[310131995,1704379856140,-408.2198676,0.0003315,2]
[310131996,1704379856151,-500.0,0.0003315,2]
[310131997,1704379856161,-500.0,0.0003315,2]
[310131998,1704379856172,-630.6111058,0.0003315,2]
[310131999,1704379856182,-765.5,0.0003315,2]
[310132000,1704379856193,-1029.06,0.0003315,2]
[310132001,1704379856203,-631.66,0.0003315,2]
[310132002,1704379856213,-500.0,0.0003315,2]
[310132003,1704379856223,-500.0,0.0003315,2]
[310132004,1704379856233,-500.0,0.0003315,2]
[310132005,1704379856247,-500.0,0.0003315,2]
[310132006,1704379856257,-500.0,0.0003315,2]
[310132007,1704379856266,-500.0,0.0003315,2]
[310132008,1704379856276,-733.19,0.0003315,2]
[310132009,1704379856286,-783.89,0.0003315,2]
[310132010,1704379856295,-500.0,0.0003315,2]
[310132011,1704379856305,-500.0,0.0003315,2]
[310132012,1704379856314,-1116.15,0.0003315,2]
[310132013,1704379856324,-500.0,0.0003315,2]
[310132014,1704379856333,-500.0,0.0003315,2]
[310132015,1704379856342,-500.0,0.0003315,2]
[310132016,1704379856352,-355.99104888,0.0003315,2]
[310132017,1704379856366,-812.07,0.0003315,2]
[310132018,1704379856375,-500.0,0.0003315,2]
[310132019,1704379856384,-534.37064265,0.0003315,2]
[310132020,1704379856394,-500.0,0.0003315,2]
[310132021,1704379856403,-500.0,0.0003315,2]
[310132022,1704379856413,-500.0,0.0003315,2]
[310132023,1704379856423,-500.0,0.0003315,2]
[310132024,1704379856432,-1411.3,0.0003315,2]
[310132025,1704379856442,-1047.26,0.0003315,2]
[310132026,1704379856453,-518.70306266,0.0003315,2]
[310132027,1704379856462,-894.07,0.0003315,2]
[310132028,1704379856471,-934.08,0.0003315,2]
[310132029,1704379856480,-500.0,0.0003315,2]
[310132030,1704379856489,-846.07,0.0003315,2]
[310132031,1704379856499,-500.0,0.0003315,2]
[310132032,1704379856509,-1000.0,0.0003315,2]
[310132033,1704379856518,-1040.25,0.0003315,2]
[310132034,1704379856530,-500.0,0.0003315,2]
[310132035,1704379856540,-500.0,0.0003315,2]
[310132036,1704379856550,-500.0,0.0003315,2]
[310132037,1704379856559,-500.0,0.0003315,2]
[310132038,1704379856569,-512.49498741,0.0003315,2]
[310132039,1704379856578,-500.0,0.0003315,2]
[310132040,1704379856588,-517.72007929,0.0003315,2]
[310132041,1704379856598,-500.0,0.0003315,2]
[310132042,1704379856608,-500.0,0.0003315,2]
[310132043,1704379856618,-500.0,0.0003315,2]
[310132044,1704379856628,-500.0,0.0003315,2]
[310132045,1704379856639,-500.0,0.0003315,2]
[310132046,1704379856649,-500.0,0.0003315,2]
[310132047,1704379856658,-500.0,0.0003315,2]
[310132048,1704379856668,-500.0,0.0003315,2]
[310132049,1704379856678,-500.0,0.0003315,2]
[310132050,1704379856687,-500.0,0.0003315,2]
[310132051,1704379856696,-500.0,0.0003315,2]
[310132052,1704379856706,-410.20225513,0.0003315,2]
[310132053,1704379856715,-610.55,0.0003315,2]
[310132054,1704379856724,-891.58,0.0003315,2]
[310132055,1704379856735,-1217.37,0.0003315,2]
[310132056,1704379856744,-715.91,0.0003315,2]
[310132057,1704379856754,-797.72,0.0003315,2]
[310132058,1704379856764,-500.0,0.0003315,2]
[310132059,1704379856774,-500.0,0.0003315,2]
[310132060,1704379856784,-500.0,0.0003315,2]
[310132061,1704379856794,-500.0,0.0003315,2]
[310132062,1704379856804,-500.0,0.0003315,2]
[310132063,1704379856815,-500.0,0.0003315,2]
[310132064,1704379856825,-1173.45,0.0003315,2]
[310132065,1704379856835,-3915.96,0.0003315,2]
[310132066,1704379856844,-500.0,0.0003315,2]
[310132067,1704379856854,-500.0,0.0003315,2]
[310132068,1704379856863,-500.0,0.0003315,2]
[310132069,1704379856873,-500.0,0.0003315,2]